fUST/lending_fUST_20250531
["ID","MTS","AMOUNT","RATE_DAILY","PERIOD"]
[363285292,1748658548130,-283.1438823,0.00015322,2]
[363285293,1748658548151,-603.6436589,0.00015437,2]
[363285309,1748658632701,-626.3189873,0.00015437,2]
[363285310,1748658632711,-204.91529702,0.00015748,2]
[363285311,1748658632720,-252.7956329,0.00015849,2]
[363285312,1748658632731,-2625.28258811,0.00015898,2]
[363285313,1748658632743,-199.62499566,0.00016337,2]
[363285314,1748658632752,-300.0,0.00016436,2]
[363285315,1748658632762,-300.0,0.00016436,2]
[363285316,1748658632772,-1200.0,0.00016436,2]
[363285317,1748658632782,-25829.22466037,0.00016437,2]
[363285318,1748658632792,-5000.0,0.00016437,2]
[363285319,1748658632802,-1000.0,0.00016437,2]
[363285320,1748658632813,-500.0,0.00016437,2]
[363285321,1748658632823,-500.0,0.00016437,2]
[363285322,1748658632832,-500.0,0.00016437,2]
[363285323,1748658632842,-500.0,0.00016437,2]
[363285324,1748658632852,-500.0,0.00016437,2]
[363285325,1748658632861,-651.70997828,0.00016437,2]
[363285326,1748658632871,-500.0,0.00016437,2]
[363285327,1748658632882,-500.0,0.00016437,2]
[363285328,1748658632891,-500.0,0.00016437,2]
[363285329,1748658632900,-500.0,0.00016437,2]
[363285330,1748658632909,-500.06266419,0.00016437,2]
[363285331,1748658632919,-234.56955409,0.00016437,2]
[363285332,1748658632929,-552.82417763,0.00016437,2]
[363285333,1748658632938,-500.0,0.00016437,2]
[363285334,1748658632947,-500.0,0.00016437,2]
[363285335,1748658632956,-500.0,0.00016437,2]
[363285336,1748658632966,-456.01323269,0.00016437,2]
[363285337,1748658632975,-164.91529568,0.00016437,2]
[363285338,1748658632984,-430.0,0.00016438,2]
[363285339,1748658632994,-430.0,0.00016438,2]
[363285340,1748658633005,-430.0,0.00016438,2]
[363285341,1748658633014,-503.31982212,0.00016438,2]
[363285342,1748658633023,-430.0,0.00016438,2]
[363285343,1748658633033,-455.63669573,0.00016438,2]
[363285344,1748658633043,-440.1709338,0.00016438,2]
[363285345,1748658633053,-430.0,0.00016438,2]
[363285346,1748658633063,-439.83593571,0.00016438,2]
[363285347,1748658633073,-445.11996863,0.00016438,2]
[363285348,1748658633083,-430.0,0.00016438,2]
[363285349,1748658633092,-452.16005807,0.00016438,2]
[363285350,1748658633102,-438.12830076,0.00016438,2]
[363285351,1748658633112,-236.53450754,0.00016438,2]
[363285352,1748658633124,-205.17369807,0.00016438,2]
[363285353,1748658633135,-449.66708214,0.00016438,2]
[363285354,1748658633146,-387.31874417,0.00016438,2]
[363285355,1748658633157,-437.13652391,0.00016438,2]
[363285356,1748658633168,-430.0,0.00016438,2]
[363285357,1748658633179,-430.0,0.00016438,2]
[363285358,1748658633189,-430.0,0.00016438,2]
[363285359,1748658633200,-303.4,0.00016438,2]
[363285360,1748658633211,-435.90401762,0.00016438,2]
[363285361,1748658633221,-484.10940813,0.00016438,2]
[363285362,1748658633231,-430.0,0.00016438,2]
[363285363,1748658633241,-232.16006393,0.00016438,2]
[363285364,1748658633251,-430.0,0.00016438,2]
[363285365,1748658633262,-520.37626854,0.00016438,2]
[363285366,1748658633271,-487.40708577,0.00016438,2]
[363285367,1748658633281,-461.12051382,0.00016438,2]
[363285368,1748658633291,-437.82696628,0.00016438,2]
[363285369,1748658633301,-430.0,0.00016438,2]
[363285370,1748658633310,-487.1,0.00016438,2]
[363285371,1748658633321,-430.0,0.00016438,2]
[363285372,1748658633331,-430.0,0.00016438,2]
[363285373,1748658633340,-500.0,0.00016438,2]
[363285374,1748658633349,-475.54206955,0.00016438,2]
[363285375,1748658633359,-442.71856616,0.00016438,2]
[363285376,1748658633369,-446.44645485,0.00016438,2]
[363285377,1748658633378,-464.01514612,0.00016438,2]
[363285378,1748658633388,-927.7,0.00016438,2]
[363285379,1748658633398,-430.0,0.00016438,2]
[363285380,1748658633408,-308.10309513,0.00016438,2]
[363285381,1748658633418,-447.22657306,0.00016438,2]
[363285382,1748658633427,-430.0,0.00016438,2]
[363285383,1748658633437,-430.0,0.00016438,2]
[363285384,1748658633447,-430.0,0.00016438,2]
[363285385,1748658633456,-430.0,0.00016438,2]
[363285386,1748658633465,-430.0,0.00016438,2]
[363285387,1748658633475,-765.86,0.00016438,2]
[363285388,1748658633485,-444.07810183,0.00016438,2]
[363285389,1748658633494,-430.0,0.00016438,2]
[363285390,1748658633504,-430.0,0.00016438,2]
[363285391,1748658633513,-1149.84,0.00016438,2]
[363285392,1748658633522,-536.88,0.00016438,2]
[363285393,1748658633532,-430.0,0.00016438,2]
[363285394,1748658633542,-430.0,0.00016438,2]
[363285395,1748658633551,-430.0,0.00016438,2]
[363285396,1748658633561,-430.0,0.00016438,2]
[363285397,1748658633570,-269.73977166,0.00016438,2]
[363285398,1748658633580,-430.0,0.00016438,2]
[363285399,1748658633590,-430.0,0.00016438,2]
[363285400,1748658633599,-430.0,0.00016438,2]
[363285401,1748658633609,-430.0,0.00016438,2]
[363285402,1748658633618,-430.0,0.00016438,2]
[363285403,1748658633627,-875.79,0.00016438,2]
[363285404,1748658633638,-467.60029577,0.00016438,2]
[363285405,1748658633648,-1359.21,0.00016438,2]
[363285406,1748658633657,-430.0,0.00016438,2]
[363285407,1748658633667,-329.60890576,0.00016438,2]
[363285408,1748658633676,-1479.6,0.00016438,2]
[363285409,1748658633686,-430.0,0.00016438,2]
[363285410,1748658633695,-450.30894739,0.00016438,2]
[363285411,1748658633705,-430.0,0.00016438,2]
[363285412,1748658633714,-430.0,0.00016438,2]
[363285413,1748658633724,-430.0,0.00016438,2]
[363285414,1748658633734,-430.0,0.00016438,2]
[363285415,1748658633745,-430.0,0.00016438,2]
[363285416,1748658633754,-430.0,0.00016438,2]
[363285417,1748658633764,-430.0,0.00016438,2]
[363285418,1748658633775,-430.0,0.00016438,2]
[363285419,1748658633784,-430.0,0.00016438,2]
[363285420,1748658633794,-462.2,0.00016438,2]
[363285421,1748658633804,-636.16,0.00016438,2]
[363285422,1748658633814,-430.0,0.00016438,2]
[363285423,1748658633825,-430.0,0.00016438,2]
[363285424,1748658633834,-430.0,0.00016438,2]
[363285425,1748658633844,-430.0,0.00016438,2]
[363285426,1748658633855,-430.0,0.00016438,2]
[363285427,1748658633865,-450.40674386,0.00016438,2]
[363285428,1748658633874,-982.3,0.00016438,2]
[363285429,1748658633885,-430.0,0.00016438,2]
[363285430,1748658633894,-430.0,0.00016438,2]
[363285431,1748658633904,-430.0,0.00016438,2]
[363285432,1748658633914,-430.0,0.00016438,2]
[363285433,1748658633924,-430.0,0.00016438,2]
[363285434,1748658633933,-490.27907984,0.00016438,2]
[363285435,1748658633942,-500.0,0.00016438,2]
[363285436,1748658633952,-500.0,0.00016438,2]
[363285437,1748658633962,-430.0,0.00016438,2]
[363285438,1748658633971,-299.77570764,0.00016438,2]
[363285439,1748658633985,-146.65964623,0.00016438,2]
[363285440,1748658633994,-430.0,0.00016438,2]
[363285441,1748658634004,-175.23909871,0.00016438,2]
[363285442,1748658634028,-280.51214534,0.00016438,2]
[363285443,1748658634038,-430.0,0.00016438,2]
[363285444,1748658634048,-430.0,0.00016438,2]
[363285445,1748658634058,-430.0,0.00016438,2]
[363285446,1748658634068,-430.0,0.00016438,2]
[363285447,1748658634078,-451.07710731,0.00016438,2]
[363285448,1748658634088,-430.0,0.00016438,2]
[363285449,1748658634097,-430.0,0.00016438,2]
[363285450,1748658634107,-437.18641735,0.00016438,2]
[363285451,1748658634116,-430.0,0.00016438,2]
[363285452,1748658634126,-507.16228523,0.00016438,2]
[363285453,1748658634137,-430.0,0.00016438,2]
[363285454,1748658634147,-430.0,0.00016438,2]
[363285455,1748658634158,-430.0,0.00016438,2]
[363285456,1748658634167,-435.9010418,0.00016438,2]
[363285457,1748658634177,-312.65499613,0.00016438,2]
[363285486,1748658638454,-117.34500387,0.00016438,2]
[363285488,1748658638463,-430.0,0.00016438,2]
[363285490,1748658638472,-430.0,0.00016438,2]
[363285491,1748658638481,-31.79485942,0.00016438,2]
[363285494,1748658638493,-398.20514058,0.00016438,2]
[363285495,1748658638503,-430.0,0.00016438,2]
[363285497,1748658638512,-437.66341549,0.00016438,2]
[363285499,1748658638521,-482.02,0.00016438,2]
[363285501,1748658638530,-430.0,0.00016438,2]
[363285502,1748658638540,-143.06740954,0.00016438,2]
[363285504,1748658638551,-286.93259046,0.00016438,2]
[363285506,1748658638560,-308.05145848,0.00016438,2]
[363285508,1748658638571,-121.94854152,0.00016438,2]
[363285510,1748658638580,-439.89924627,0.00016438,2]
[363285512,1748658638591,-44.23075373,0.00016438,2]
[363285514,1748658638600,-430.0,0.00016438,2]
[363285516,1748658638609,-430.0,0.00016438,2]
[363285517,1748658638619,-132.60599337,0.00016438,2]
[363285520,1748658638635,-572.02400663,0.00016438,2]
[363285522,1748658638646,-430.0,0.00016438,2]
[363285523,1748658638655,-430.0,0.00016438,2]
[363285525,1748658638664,-437.76113185,0.00016438,2]
[363285527,1748658638673,-520.46,0.00016438,2]
[363285528,1748658638683,-430.0,0.00016438,2]
[363285530,1748658638693,-441.09544958,0.00016438,2]
[363285531,1748658638703,-433.7215126,0.00016438,2]
[363285532,1748658638712,-430.0,0.00016438,2]
[363285533,1748658638721,-430.0,0.00016438,2]
[363285534,1748658638733,-243.91951072,0.00016438,2]
[363285535,1748658638742,-430.0,0.00016438,2]
[363285536,1748658638752,-385.74013933,0.00016438,2]
[363285538,1748658638761,-430.0,0.00016438,2]
[363285539,1748658638771,-557.15,0.00016438,2]
[363285540,1748658638780,-430.0,0.00016438,2]
[363285541,1748658638789,-447.13378735,0.00016438,2]
[363285542,1748658638798,-430.0,0.00016438,2]
[363285543,1748658638808,-450.90561233,0.00016438,2]
[363285544,1748658638818,-430.0,0.00016438,2]
[363285545,1748658638828,-430.0,0.00016438,2]
[363285546,1748658638837,-439.10524416,0.00016438,2]
[363285547,1748658638846,-430.0,0.00016438,2]
[363285548,1748658638855,-889.05,0.00016438,2]
[363285549,1748658638864,-616.84,0.00016702,3]
[363285550,1748658638873,-308.42,0.00016702,3]
[363285551,1748658638883,-154.21,0.00016702,3]
[363285552,1748658638893,-462.63,0.00016702,3]
[363285553,1748658638902,-1000.0,0.00016711,2]
[363285554,1748658638911,-1000.0,0.00016711,2]
[363285555,1748658638922,-551.49890558,0.00016711,2]
[363285556,1748658638933,-434.17738906,0.00016712,2]
[363285557,1748658638943,-447.26478239,0.00016712,2]
[363285558,1748658638953,-430.0,0.00016712,2]
[363285559,1748658638962,-430.0,0.00016712,2]
[363285560,1748658638971,-430.0,0.00016712,2]
[363285561,1748658638981,-430.0,0.00016712,2]
[363285562,1748658638990,-430.0,0.00016712,2]
[363285563,1748658638999,-487.1,0.00016712,2]
[363285564,1748658639008,-430.0,0.00016712,2]
[363285565,1748658639017,-430.0,0.00016712,2]
[363285566,1748658639026,-430.0,0.00016712,2]
[363285567,1748658639035,-430.0,0.00016712,2]
[363285568,1748658639045,-514.86369772,0.00016712,2]
[363285569,1748658639054,-430.0,0.00016712,2]
[363285570,1748658639063,-498.97968538,0.00016712,2]
[363285571,1748658639072,-221.5857828,0.00016712,2]
[363285572,1748658639081,-765.86,0.00016712,2]
[363285573,1748658639090,-457.36841661,0.00016712,2]
[363285574,1748658639099,-430.0,0.00016712,2]
[363285575,1748658639108,-1149.84,0.00016712,2]
[363285576,1748658639117,-536.88,0.00016712,2]
[363285577,1748658639126,-430.0,0.00016712,2]
[363285578,1748658639135,-430.0,0.00016712,2]
[363285579,1748658639147,-267.28749386,0.00016712,2]
[363285580,1748658639155,-430.0,0.00016712,2]
[363285581,1748658639164,-430.0,0.00016712,2]
[363285582,1748658639174,-430.0,0.00016712,2]
[363285583,1748658639183,-430.0,0.00016712,2]
[363285584,1748658639192,-430.0,0.00016712,2]
[363285585,1748658639202,-430.0,0.00016712,2]
[363285586,1748658639211,-875.79,0.00016712,2]
[363285587,1748658639220,-430.0,0.00016712,2]
[363285588,1748658639229,-1359.21,0.00016712,2]
[363285589,1748658639238,-1479.6,0.00016712,2]
[363285590,1748658639247,-464.36689448,0.00016712,2]
[363285591,1748658639257,-430.0,0.00016712,2]
[363285592,1748658639266,-435.74532164,0.00016712,2]
[363285593,1748658639275,-430.0,0.00016712,2]
[363285594,1748658639284,-430.0,0.00016712,2]
[363285595,1748658639293,-442.7260579,0.00016712,2]
[363285596,1748658639302,-430.0,0.00016712,2]
[363285597,1748658639311,-500.61050951,0.00016712,2]
[363285598,1748658639320,-462.2,0.00016712,2]
[363285599,1748658639329,-636.16,0.00016712,2]
[363285600,1748658639338,-430.0,0.00016712,2]
[363285601,1748658639347,-430.0,0.00016712,2]
[363285602,1748658639356,-430.0,0.00016712,2]
[363285603,1748658639365,-430.0,0.00016712,2]
[363285604,1748658639375,-439.28298965,0.00016712,2]
[363285605,1748658639387,-982.3,0.00016712,2]
[363285606,1748658639399,-430.0,0.00016712,2]
[363285607,1748658639408,-440.70801714,0.00016712,2]
[363285608,1748658639418,-430.0,0.00016712,2]
[363285609,1748658639431,-462.73193462,0.00016712,2]
[363285610,1748658639444,-430.0,0.00016712,2]
[363285611,1748658639456,-430.0,0.00016712,2]
[363285612,1748658639468,-406.44018176,0.00016712,2]
[363285613,1748658639481,-456.81972831,0.00016712,2]
[363285614,1748658639492,-430.0,0.00016712,2]
[363285615,1748658639504,-475.45897167,0.00016712,2]
[363285616,1748658639516,-430.0,0.00016712,2]
[363285617,1748658639528,-430.0,0.00016712,2]
[363285618,1748658639539,-430.0,0.00016712,2]
[363285619,1748658639551,-430.0,0.00016712,2]
[363285620,1748658639563,-430.0,0.00016712,2]
[363285621,1748658639576,-430.0,0.00016712,2]
[363285622,1748658639588,-430.0,0.00016712,2]
[363285623,1748658639599,-430.0,0.00016712,2]
[363285624,1748658639611,-430.0,0.00016712,2]
[363285625,1748658639623,-459.56978291,0.00016712,2]
[363285626,1748658639637,-430.0,0.00016712,2]
[363285627,1748658639650,-430.0,0.00016712,2]
[363285628,1748658639662,-482.02,0.00016712,2]
[363285629,1748658639673,-430.0,0.00016712,2]
[363285630,1748658639684,-430.0,0.00016712,2]
[363285631,1748658639697,-430.0,0.00016712,2]
[363285632,1748658639709,-484.13,0.00016712,2]
[363285633,1748658639719,-246.46147107,0.00016712,2]
[363285634,1748658639732,-430.0,0.00016712,2]
[363285635,1748658639749,-704.63,0.00016712,2]
[363285636,1748658639761,-430.0,0.00016712,2]
[363285637,1748658639773,-430.0,0.00016712,2]
[363285638,1748658639785,-520.46,0.00016712,2]
[363285639,1748658639797,-430.0,0.00016712,2]
[363285640,1748658639808,-430.0,0.00016712,2]
[363285641,1748658639821,-430.0,0.00016712,2]
[363285642,1748658639834,-430.0,0.00016712,2]
[363285643,1748658639844,-445.64706325,0.00016712,2]
[363285644,1748658639856,-557.15,0.00016712,2]
[363285645,1748658639868,-430.0,0.00016712,2]
[363285646,1748658639879,-430.0,0.00016712,2]
[363285647,1748658639892,-430.0,0.00016712,2]
[363285648,1748658639902,-464.64586593,0.00016712,2]
[363285649,1748658639914,-463.08068349,0.00016712,2]
[363285650,1748658639926,-889.05,0.00016712,2]
[363285651,1748658639938,-2755.93095582,0.000169,2]
[363285652,1748658639952,-2084.62210428,0.00016911,2]
[363285653,1748658639964,-1000.0,0.00016985,2]
[363285654,1748658639976,-160.0,0.00016985,2]
[363285655,1748658639987,-430.0,0.00016986,2]
[363285656,1748658639998,-430.0,0.00016986,2]
[363285657,1748658640008,-430.0,0.00016986,2]
[363285658,1748658640018,-430.0,0.00016986,2]
[363285659,1748658640029,-430.0,0.00016986,2]
[363285660,1748658640040,-487.1,0.00016986,2]
[363285661,1748658640052,-430.0,0.00016986,2]
[363285662,1748658640064,-432.10339866,0.00016986,2]
[363285663,1748658640076,-421.12189379,0.00016986,2]
[363285664,1748658640087,-430.0,0.00016986,2]
[363285665,1748658640098,-430.0,0.00016986,2]
[363285666,1748658640108,-765.86,0.00016986,2]
[363285667,1748658640121,-238.52617935,0.00016986,2]
[363285668,1748658640133,-1149.84,0.00016986,2]
[363285669,1748658640146,-536.88,0.00016986,2]
[363285670,1748658640158,-430.0,0.00016986,2]
[363285671,1748658640170,-530.0,0.00016986,2]
[363285672,1748658640180,-439.80104381,0.00016986,2]
[363285674,1748658640190,-430.0,0.00016986,2]
[363285675,1748658640200,-430.0,0.00016986,2]
[363285676,1748658640211,-447.27521055,0.00016986,2]
[363285677,1748658640222,-430.0,0.00016986,2]
[363285678,1748658640232,-875.79,0.00016986,2]
[363285680,1748658640244,-430.0,0.00016986,2]
[363285682,1748658640254,-1359.21,0.00016986,2]
[363285683,1748658640265,-1479.6,0.00016986,2]
[363285685,1748658640275,-430.0,0.00016986,2]
[363285686,1748658640286,-430.0,0.00016986,2]
[363285688,1748658640297,-430.0,0.00016986,2]
[363285689,1748658640308,-430.0,0.00016986,2]
[363285690,1748658640319,-462.2,0.00016986,2]
[363285691,1748658640330,-636.16,0.00016986,2]
[363285693,1748658640341,-430.0,0.00016986,2]
[363285694,1748658640351,-458.1899109,0.00016986,2]
[363285695,1748658640363,-536.69708935,0.00016986,2]
[363285696,1748658640374,-982.3,0.00016986,2]
[363285697,1748658640384,-430.0,0.00016986,2]
[363285698,1748658640396,-430.0,0.00016986,2]
[363285699,1748658640407,-194.3484285,0.00016986,2]
[363285700,1748658640417,-430.0,0.00016986,2]
[363285701,1748658640428,-430.0,0.00016986,2]
[363285702,1748658640439,-430.0,0.00016986,2]
[363285703,1748658640449,-430.0,0.00016986,2]
[363285704,1748658640461,-430.0,0.00016986,2]
[363285705,1748658640471,-430.0,0.00016986,2]
[363285706,1748658640481,-526.52078024,0.00016986,2]
[363285707,1748658640491,-430.0,0.00016986,2]
[363285708,1748658640502,-430.0,0.00016986,2]
[363285709,1748658640513,-430.0,0.00016986,2]
[363285710,1748658640523,-430.0,0.00016986,2]
[363285711,1748658640534,-430.0,0.00016986,2]
[363285712,1748658640544,-430.0,0.00016986,2]
[363285713,1748658640555,-482.02,0.00016986,2]
[363285714,1748658640566,-451.53644999,0.00016986,2]
[363285716,1748658640576,-538.15264217,0.00016986,2]
[363285717,1748658640586,-430.0,0.00016986,2]
[363285718,1748658640597,-484.13,0.00016986,2]
[363285719,1748658640607,-430.0,0.00016986,2]
[363285720,1748658640618,-704.63,0.00016986,2]
[363285721,1748658640630,-430.0,0.00016986,2]
[363285722,1748658640641,-430.0,0.00016986,2]
[363285723,1748658640651,-430.0,0.00016986,2]
[363285724,1748658640662,-520.46,0.00016986,2]
[363285725,1748658640674,-430.0,0.00016986,2]
[363285726,1748658640684,-430.0,0.00016986,2]
[363285727,1748658640695,-434.37216938,0.00016986,2]
[363285729,1748658640706,-557.15,0.00016986,2]
[363285731,1748658640717,-430.0,0.00016986,2]
[363285733,1748658640728,-430.0,0.00016986,2]
[363285734,1748658640742,-430.0,0.00016986,2]
[363285735,1748658640752,-889.05,0.00016986,2]
[363285736,1748658640764,-91607.91919859,0.00017,2]
[363285737,1748658640775,-502.05716297,0.00017044,2]
[363285738,1748658640786,-571.77089163,0.00017074,2]
[363285739,1748658640797,-500.0,0.00017074,2]
[363285740,1748658640808,-408.42900786,0.00017074,2]
[363285741,1748658640820,-500.82002908,0.0001711,2]
[363285742,1748658640832,-501.61333408,0.0001711,2]
[363285743,1748658640843,-300.09488458,0.0001711,2]
[363285744,1748658640853,-502.25716102,0.0001711,2]
[363285745,1748658640864,-507.7224305,0.00017125,2]
[363285746,1748658640875,-500.0,0.00017126,2]
[363285747,1748658640886,-159.71522884,0.00017126,2]
[363285748,1748658640900,-500.0,0.00017129,2]
[363285749,1748658640910,-500.0,0.00017129,2]
[363285750,1748658640921,-500.0,0.00017129,2]
[363285751,1748658640932,-156.16052953,0.00017129,2]
[363285752,1748658640943,-501.54153953,0.00017129,2]
[363285753,1748658640953,-500.0,0.00017129,2]
[363285754,1748658640965,-500.0,0.00017129,2]
[363285755,1748658640975,-500.0,0.00017129,2]
[363285756,1748658640987,-500.0,0.00017129,2]
[363285757,1748658640998,-501.57709233,0.00017158,2]
[363285758,1748658641010,-500.0,0.00017163,2]
[363285759,1748658641021,-500.0,0.00017163,2]
[363285760,1748658641033,-500.0,0.00017163,2]
[363285761,1748658641042,-560.12747277,0.00017163,2]
[363285762,1748658641052,-500.0,0.00017163,2]
[363285763,1748658641062,-500.0,0.00017163,2]
[363285764,1748658641071,-500.0,0.00017163,2]
[363285765,1748658641081,-500.0,0.00017163,2]
[363285766,1748658641090,-500.0,0.00017163,2]
[363285767,1748658641099,-500.0,0.00017163,2]
[363285768,1748658641109,-384.1764416,0.00017163,2]
[363285769,1748658641118,-286.00885095,0.00017164,2]
[363285770,1748658641128,-500.0,0.00017164,2]
[363285771,1748658641326,-2755.93095573,0.00017176,2]
[363285772,1748658641342,-655.70038417,0.00017208,2]
[363285773,1748658641353,-1000.0,0.00017259,2]
[363285774,1748658641363,-437.25014878,0.0001726,2]
[363285775,1748658641372,-430.0,0.0001726,2]
[363285776,1748658641384,-430.0,0.0001726,2]
[363285777,1748658641397,-274.90808978,0.0001726,2]
[363285778,1748658641406,-430.0,0.0001726,2]
[363285779,1748658641416,-487.1,0.0001726,2]
[363285780,1748658641425,-430.0,0.0001726,2]
[363285781,1748658641435,-430.0,0.0001726,2]
[363285782,1748658641445,-430.0,0.0001726,2]
[363285783,1748658641454,-765.86,0.0001726,2]
[363285784,1748658641463,-1149.84,0.0001726,2]
[363285785,1748658641472,-536.88,0.0001726,2]
[363285786,1748658641482,-430.0,0.0001726,2]
[363285787,1748658641491,-430.0,0.0001726,2]
[363285788,1748658641501,-430.0,0.0001726,2]
[363285789,1748658641510,-411.0955229,0.0001726,2]
[363285790,1748658641520,-875.79,0.0001726,2]
[363285791,1748658641529,-430.0,0.0001726,2]
[363285792,1748658641538,-1359.21,0.0001726,2]
[363285793,1748658641548,-1479.6,0.0001726,2]
[363285794,1748658641557,-430.0,0.0001726,2]
[363285795,1748658641567,-430.0,0.0001726,2]
[363285796,1748658641576,-430.0,0.0001726,2]
[363285797,1748658641586,-430.0,0.0001726,2]
[363285798,1748658641596,-462.2,0.0001726,2]
[363285799,1748658641606,-636.16,0.0001726,2]
[363285800,1748658641615,-430.0,0.0001726,2]
[363285801,1748658641625,-982.3,0.0001726,2]
[363285802,1748658641635,-430.0,0.0001726,2]
[363285803,1748658641647,-430.0,0.0001726,2]
[363285804,1748658641657,-430.0,0.0001726,2]
[363285805,1748658641666,-430.0,0.0001726,2]
[363285806,1748658641676,-430.0,0.0001726,2]
[363285807,1748658641686,-430.0,0.0001726,2]
[363285808,1748658641695,-430.0,0.0001726,2]
[363285809,1748658641705,-454.57750771,0.0001726,2]
[363285810,1748658641714,-430.0,0.0001726,2]
[363285811,1748658641724,-430.0,0.0001726,2]
[363285812,1748658641738,-430.0,0.0001726,2]
[363285813,1748658641748,-384.8716264,0.0001726,2]
[363285814,1748658641757,-430.0,0.0001726,2]
[363285815,1748658641767,-430.0,0.0001726,2]
[363285816,1748658641776,-482.02,0.0001726,2]
[363285817,1748658641786,-430.0,0.0001726,2]
[363285818,1748658641796,-484.13,0.0001726,2]
[363285819,1748658641805,-430.0,0.0001726,2]
[363285820,1748658641815,-704.63,0.0001726,2]
[363285821,1748658641825,-455.3847995,0.0001726,2]
[363285822,1748658641834,-430.0,0.0001726,2]
[363285823,1748658641843,-430.0,0.0001726,2]
[363285824,1748658641853,-520.46,0.0001726,2]
[363285825,1748658641862,-448.5000392,0.0001726,2]
[363285826,1748658641872,-430.0,0.0001726,2]
[363285827,1748658641882,-557.15,0.0001726,2]
[363285828,1748658641894,-430.0,0.0001726,2]
[363285829,1748658641904,-430.0,0.0001726,2]
[363285830,1748658641913,-430.0,0.0001726,2]
[363285831,1748658641923,-889.05,0.0001726,2]
[363285832,1748658641934,-500.0,0.00017288,2]
[363285833,1748658641943,-505.66120686,0.00017288,2]
[363285834,1748658641953,-2755.93095573,0.00017452,2]
[363285835,1748658641963,-949.65,0.00017533,2]
[363285836,1748658641982,-430.0,0.00017534,2]
[363285837,1748658642001,-430.0,0.00017534,2]
[363285838,1748658642014,-487.1,0.00017534,2]
[363285839,1748658642023,-430.0,0.00017534,2]
[363285840,1748658642033,-430.0,0.00017534,2]
[363285841,1748658642042,-430.0,0.00017534,2]
[363285842,1748658642053,-765.86,0.00017534,2]
[363285843,1748658642062,-1149.84,0.00017534,2]
[363285844,1748658642073,-536.88,0.00017534,2]
[363285845,1748658642083,-430.0,0.00017534,2]
[363285846,1748658642092,-430.0,0.00017534,2]
[363285847,1748658642102,-875.79,0.00017534,2]
[363285848,1748658642111,-430.0,0.00017534,2]
[363285849,1748658642120,-1359.21,0.00017534,2]
[363285850,1748658642129,-1479.6,0.00017534,2]
[363285851,1748658642138,-430.0,0.00017534,2]
[363285852,1748658642150,-430.0,0.00017534,2]
[363285853,1748658642159,-430.0,0.00017534,2]
[363285854,1748658642169,-430.0,0.00017534,2]
[363285855,1748658642178,-462.2,0.00017534,2]
[363285856,1748658642188,-636.16,0.00017534,2]
[363285857,1748658642197,-430.0,0.00017534,2]
[363285858,1748658642207,-982.3,0.00017534,2]
[363285859,1748658642222,-467.58745214,0.00017534,2]
[363285860,1748658642244,-430.0,0.00017534,2]
[363285861,1748658642253,-430.0,0.00017534,2]
[363285862,1748658642263,-430.0,0.00017534,2]
[363285863,1748658642273,-430.0,0.00017534,2]
[363285864,1748658642283,-430.0,0.00017534,2]
[363285865,1748658642292,-231.4395295,0.00017534,2]